Cogmind - Beta 15 @@@ ROGUE MODE // 2025.06.14 @ 00:24:44 Player: DZKane Result: Destroyed by B-90 Cyclops with Nova Cannon Performance ------------- Evolutions (8) 4000 Regions Visited (12) 2400 Robots Destroyed (89) 445 Value Destroyed (2837) 2837 Prototype IDs (11) 220 Alien Tech Used (0) 0 Bonus (0) 0 TOTAL SCORE: 9902 Bonus ------- None Cogmind --------- Core Integrity 0/1450 Matter 268/300 Energy 99/100 System Corruption 40% Temperature Cool (9) Movement Core (50) Location -2/Research Parts ------- > --- POWER (1) -------- (None) > --- PROPULSION (10) -- (None) > --- UTILITY (10) ----- Experimental Coolant Injector Machine Analyzer Advanced Signal Interpreter > --- WEAPON (2) ------- (None) > --- INVENTORY (5) ---- Stasis Canceller Advanced Reaction Control System Improved Plasma Cutter Thunder Hammer Peak State ------------ > --- POWER ------------ (None) > --- PROPULSION ------- Armored Medium Treads Biometal Heavy Treads Biometal Leg Experimental Myomer Leg Centrium Leg Improved Antigrav System Combat Linear Gravjet Electron Diverter Electron Diverter > --- UTILITY ---------- Experimental Power Amplifier Experimental Coolant Injector Machine Analyzer Advanced Signal Interpreter Advanced Signal Interpreter Improved Melee Analysis Suite > --- WEAPON ----------- Scythe > --- INVENTORY -------- Stasis Canceller Advanced Reaction Control System Long-range Missile Launcher Improved Plasma Cutter Thunder Hammer [Rating: 125] Favorites ----------- Power Light Ion Engine Engine Light Ion Engine Power Core Light Nuclear Core Reactor Light Quantum Reactor Propulsion Aluminum Leg Treads Improved Medium Treads Leg Aluminum Leg Wheel Armored Wheel Hover Unit Improved Antigrav System Flight Unit Field Propulsion Drive Utility Machine Analyzer Device Advanced Weight Redist. System Storage Medium Storage Unit Processor Machine Analyzer Hackware Hacking Suite Protection Light Armor Plating Weapon Flail Energy Gun EM Pulse Gun Ballistic Gun Assault Rifle Launcher Long-range Missile Launcher Impact Weapon Flail Slashing Weapon Chainsword Piercing Weapon Lance Build | -11 -10 -10 -9 -8 -7 -6 -6 -6 -5 -4 -3 -2 ------- Run | Yrd Mat Min Mat Mat Fac Fac Was Fac Fac Fac Res Res Slots Evolved 16 | . . . 2 2 2 2 . . 2 2 2 2 Power . | . . . . . . . . . . . . . Propulsion 8 | . . . 2 1 1 2 . . . 2 . . Utility 8 | . . . . 1 1 . . . 2 . 2 2 Weapon . | . . . . . . . . . . . . . Parts Attached 119 | . 6 11 3 14 14 6 . 9 3 17 12 24 Power 12 | . . 1 . 1 2 . . 1 1 1 2 3 Engine 6 | . . 1 . 1 1 . . . . 1 1 1 Core 3 | . . . . . 1 . . 1 1 . . . Reactor 3 | . . . . . . . . . . . 1 2 Propulsion 59 | . 2 4 2 5 6 4 . 6 2 5 8 15 Treads 13 | . 2 . . 4 . 1 . 3 . 1 . 2 Leg 16 | . . 4 2 . . . . . . 2 . 8 Wheel 7 | . . . . . 6 . . . . . 1 . Hover 12 | . . . . . . 2 . . . 1 7 2 Flight 11 | . . . . 1 . 1 . 3 2 1 . 3 Utility 30 | . 1 2 1 6 2 2 . 2 . 7 2 5 Device 16 | . 1 1 1 2 . 1 . 1 . 4 2 3 Storage 1 | . . 1 . . . . . . . . . . Processor 8 | . . . . 1 2 . . 1 . 3 . 1 Hackware 2 | . . . . . . 1 . . . . . 1 Protection 3 | . . . . 3 . . . . . . . . Artifact . | . . . . . . . . . . . . . Weapon 18 | . 3 4 . 2 4 . . . . 4 . 1 Energy Gun . | . . . . . . . . . . . . . Energy Cannon . | . . . . . . . . . . . . . Ballistic Gun 1 | . 1 . . . . . . . . . . . Ballistic Cannon . | . . . . . . . . . . . . . Launcher 4 | . . 2 . . . . . . . 2 . . Special Weapon . | . . . . . . . . . . . . . Impact Weapon 8 | . 2 2 . 1 2 . . . . 1 . . Slashing Weapon 4 | . . . . 1 2 . . . . . . 1 Piercing Weapon 1 | . . . . . . . . . . 1 . . Special Melee Weapon . | . . . . . . . . . . . . . Unidentified Prototypes 6 | . . . . . . . . . . 1 1 4 Parts Lost 60 | . . 1 1 7 2 . 4 1 . 12 8 24 Power 3 | . . . . . . . . 1 . 2 . . Propulsion 46 | . . . . 7 2 . 4 . . 8 8 17 Utility 8 | . . 1 1 . . . . . . 1 . 5 Weapon 3 | . . . . . . . . . . 1 . 2 Highest Loss Streak 14 | . . 1 1 2 2 . 4 1 . 4 5 14 To Critical Strikes 2 | . . . . . . . 1 . . . . 1 Average Backups 5 | . 7 8 7 4 3 4 4 4 4 4 4 4 Power . | . 1 . . . . . . . . . . . Propulsion . | . 2 1 . . . . . . . . . . Utility 1 | . . 1 1 1 1 1 1 1 1 1 2 1 Weapon 3 | . 3 5 6 3 2 3 3 2 2 1 1 1 Tool/Special . | . . . . . . . . . . . . . Unused Backups 20 | . 8 4 1 3 1 . . 1 . . 1 1 Power 2 | . . 2 . . . . . . . . . . Propulsion 3 | . 2 . 1 . . . . . . . . . Utility 3 | . . 2 . . . . . . . . 1 . Weapon 11 | . 6 . . 3 1 . . 1 . . . . Tool/Special 1 | . . . . . . . . . . . . 1 Average Slot Usage (%) 76 | . 95 95 88 59 68 80 86 78 82 80 66 58 Engine 5 | . 14 14 11 3 6 6 5 2 . 1 . . Treads 7 | . 13 3 . 13 . 4 5 12 17 14 . 4 Leg 11 | . 14 24 40 10 . . . . . 6 5 8 Wheel 4 | . . . . . 18 20 18 13 11 3 3 . Hover 3 | . . . . . . 8 10 . . 2 12 10 Flight 4 | . . . . . . . 5 10 17 16 8 4 Device 8 | . 9 10 4 3 7 12 13 13 11 9 9 5 Storage 3 | . 14 14 11 . . . . . . . . . Processor 9 | . . . . 8 13 9 6 7 11 16 19 17 Ballistic Gun 1 | . 18 . . . . . . . . . . . Impact Weapon 7 | . 4 27 22 15 5 . . . . . . . Slashing Weapon 4 | . . . . 2 8 13 13 10 5 5 4 3 Peak Build Rating 125 | . 10 12 13 18 32 49 49 51 57 73 99 125 Average Rating 40 | . 7 10 11 12 25 41 44 40 52 62 67 93 On Entrance 30 | 6 6 10 12 12 14 30 49 27 45 55 65 66 Naked Turns . | . . . . . . . . . . . . . Heaviest Build 22 | 12 13 18 18 18 12 12 12 12 11 11 12 22 Greatest Support 57 | 20 40 40 40 40 37 12 15 39 23 24 57 30 Greatest Overweight (x) 3 | . . 1 . 1 . . . 2 . 2 3 1 Average Overweight (x) . | . . . . . . . . . . . . . Largest Inventory Capacity 10 | . 8 10 10 10 5 5 5 5 5 5 5 5 Average Capacity 6 | . 8 9 10 5 5 5 5 5 5 5 5 5 Most Carried 10 | . 8 10 10 10 5 5 5 5 5 5 5 5 Average Carried 5 | . 7 8 8 5 4 5 5 4 4 4 4 4 Final Capacity 10 | 8 8 10 10 5 5 5 5 5 5 5 5 5 Final Carried 10 | 6 8 10 10 5 5 5 5 4 5 5 5 4 Class Distribution -------------------- 68% | Mutant 21% | Scavenger-Mutant 6% | Scout 3% | Scavenger-Gladiator Dominant Class ---------------- Mutant | -10/Materials Mutant | -10/Mines Mutant | -9/Materials Mutant | -8/Materials Scavenger-Mutant | -7/Factory Scavenger-Mutant | -6/Factory Scavenger-Mutant | -6/Waste Mutant | -6/Factory Scout | -5/Factory Scavenger-Mutant | -4/Factory Mutant | -3/Research Mutant | -2/Research Resources | -11 -10 -10 -9 -8 -7 -6 -6 -6 -5 -4 -3 -2 ----------- Run | Yrd Mat Min Mat Mat Fac Fac Was Fac Fac Fac Res Res Matter Collected 1618 | 181 16 217 20 163 132 88 . 65 . 237 178 321 Remotely . | . . . . . . . . . . . . . Salvage Created 3261 | . 16 436 205 650 179 151 . 97 . 535 420 572 Parts 146 | . 3 20 4 17 7 10 . 11 . 28 12 34 Haulers Intercepted 2 | . . . . . . 1 . . . 1 . . Recyclers Shooed 5 | . . . . . . . . . . 2 1 2 Parts Field Recycled . | . . . . . . . . . . . . . Retrieved Matter . | . . . . . . . . . . . . . Parts Self-Destructed . | . . . . . . . . . . . . . Prevented . | . . . . . . . . . . . . . Kills | -11 -10 -10 -9 -8 -7 -6 -6 -6 -5 -4 -3 -2 ------- Run | Yrd Mat Min Mat Mat Fac Fac Was Fac Fac Fac Res Res Combat Hostiles Destroyed 62 | . 1 11 5 16 . . . 4 . 11 8 6 Melee 28 | . . 4 2 10 . . . 4 . 3 1 4 Guns 1 | . 1 . . . . . . . . . . . AOE 21 | . . 4 . . . . . . . 8 7 2 Classes Destroyed 14 | . 1 3 . 4 . 3 . . . 2 . 1 Worker 11 | . . 3 . . 2 . . . . 3 . 3 Builder 2 | . . . . . . . . . . 1 . 1 Hauler 2 | . . . . . . 1 . . . 1 . . Recycler 6 | . . 1 . 1 1 . . . . . 2 1 Mechanic 3 | . . . . 1 2 . . . . . . . Operator 2 | . . . . . . 1 . . . 1 . . Watcher 1 | . . . . . . 1 . . . . . . Swarmer 23 | . 1 3 . 3 . . . 4 . 5 5 2 Cutter 3 | . . . . . . . . . . 3 . . Grunt 24 | . . 8 5 7 . . . . . 1 3 . Duelist 1 | . . . . 1 . . . . . . . . Sentry 6 | . . . . 4 . . . . . 2 . . Hunter 1 | . . . . 1 . . . . . . . . Programmer 4 | . . . . . . . . . . . . 4 Best Kill Streak 8 | . 1 6 3 4 2 1 . 4 . 6 8 4 Combat Bots Only 8 | . 1 4 3 3 . . . 4 . 5 8 3 Max Kills in Single Turn 3 | . 1 3 1 1 1 1 . 1 . 3 3 2 Gunslinging . | . . . . . . . . . . . . . Exploded 3 | . . 3 . . . . . . . 3 3 2 Melee 1 | . . 1 1 1 . . . 1 . 1 1 1 Uniques/NPCs Destroyed . | . . . . . . . . . . . . . Combat | -11 -10 -10 -9 -8 -7 -6 -6 -6 -5 -4 -3 -2 -------- Run | Yrd Mat Min Mat Mat Fac Fac Was Fac Fac Fac Res Res Hostile Shots Fired 912 | . 5 51 16 146 43 . 2 15 5 102 44 483 Missed 327 | . 1 6 3 42 22 . . 5 2 37 15 194 Hits 585 | . 4 45 13 104 21 . 2 10 3 65 29 289 Melee 8 | . . . . 4 . . 2 . . 2 . . Projectile 577 | . 4 45 13 100 21 . . 10 3 63 29 289 AOE 3 | . . . . . 1 . . . . 2 . . Critical Strikes 36 | . 1 . . 8 . . 1 . 1 4 2 19 Damage Taken 12045 | . 33 543 155 1517 423 . 89 151 74 1572 751 6737 Core 2498 | . 7 120 37 451 43 . . 14 25 220 103 1478 Absorbed by Shields . | . . . . . . . . . . . . . Core Remaining (%) 79 | 100 . 49 90 18 93 . . 98 97 80 92 . Volleys Fired 17 | . 2 2 . . . . . . . 4 8 1 Largest 2 | . 2 2 . . . . . . . 1 1 1 Hottest 63 | . 40 63 . . . . . . . 43 43 43 Shots Fired 20 | . 4 3 . . . . . . . 4 8 1 Gun 4 | . 4 . . . . . . . . . . . Cannon . | . . . . . . . . . . . . . Launcher 16 | . . 3 . . . . . . . 4 8 1 Special . | . . . . . . . . . . . . . Kinetic 4 | . 4 . . . . . . . . . . . Thermal . | . . . . . . . . . . . . . Explosive 16 | . . 3 . . . . . . . 4 8 1 Electromagnetic . | . . . . . . . . . . . . . Robot Hit Streak 4 | . 2 4 . . . . . . . 2 2 . Robot Miss Streak 3 | . 1 . . . . . . . . 1 3 . Penetration Max . | . . . . . . . . . . . . . Secondary Targets . | . . . . . . . . . . . . . Shots Hit Robots 205 | . 2 22 10 67 5 4 . 7 1 30 16 41 Core Hits 85 | . 1 11 2 9 2 3 . 4 . 18 19 16 Critical Kills 3 | . . . 2 1 . . . . . . . . Critical Parts Destroyed 16 | . . 6 . 9 1 . . . . . . . Critical Strikes 32 | . . 6 2 11 1 . . 1 . 4 1 6 Smash 19 | . . 6 2 10 1 . . . . . . . Sever 13 | . . . . 1 . . . 1 . 4 1 6 Melee Attacks 340 | . . 41 16 94 15 20 . 10 7 55 19 63 Impact 143 | . . 41 16 80 5 . . . . . . 1 Slashing 192 | . . . . 14 10 20 . 10 7 51 18 62 Piercing 5 | . . . . . . . . . . 4 1 . Sneak Attacks 33 | . . 3 . 3 5 1 . 2 . 7 4 8 Combat Hostiles 1 | . . 1 . . . . . . . . . . Follow-up Attacks 30 | . . 8 1 18 . 1 . 2 . . . . Damage Inflicted 10512 | . 25 1376 426 2176 413 232 . 361 40 1859 1731 1873 Guns 25 | . 25 . . . . . . . . . . . Cannons . | . . . . . . . . . . . . . Explosions 2333 | . . 463 . . . . . . . 590 1039 241 Melee 8149 | . . 913 426 2176 413 232 . 361 40 1269 687 1632 Ramming 5 | . . . . . . . . . . . 5 . Kinetic 25 | . 25 . . . . . . . . . . . Thermal 42 | . . 42 . . . . . . . . . . Explosive 2291 | . . 421 . . . . . . . 590 1039 241 Electromagnetic . | . . . . . . . . . . . . . Impact 3404 | . . 913 426 1780 285 . . . . . . . Slashing 4745 | . . . . 396 128 232 . 361 40 1269 687 1632 Piercing . | . . . . . . . . . . . . . Highest Corruption 40 | . . . . . . . 8 8 . . . 40 Average Corruption 14 | . . . . . . . 8 8 . . . 17 Corruption Purged . | . . . . . . . . . . . . . Corruption Blocked . | . . . . . . . . . . . . . Effects 40 | . . . . . . . 2 7 . . . 31 Message Errors 9 | . . . . . . . . 3 . . . 6 Matter Fused 9 | . . . . . . . . 1 . . . 8 Heat Flow Errors 4 | . . . . . . . 1 1 . . . 2 Energy Discharges 3 | . . . . . . . . 1 . . . 2 Parts Rejected 2 | . . . . . . . 1 . . . . 1 Parts Fused 1 | . . . . . . . . . . . . 1 Data Loss (minor) 2 | . . . . . . . . 1 . . . 1 Misdirections 10 | . . . . . . . . . . . . 10 Overload Shots . | . . . . . . . . . . . . . Overflow Damage 1824 | . . 334 26 555 220 2 . 91 5 180 197 214 Projectiles . | . . . . . . . . . . . . . Explosions 79 | . . . . . . . . . . 13 48 18 Melee 1745 | . . 334 26 555 220 2 . 91 5 167 149 196 Knockbacks 11 | . . 3 . 6 2 . . . . . . . Impact 10 | . . 3 . 5 2 . . . . . . . Kinetic . | . . . . . . . . . . . . . Secondary 1 | . . . . 1 . . . . . . . . Self-Inflicted Damage 165 | . . 46 . . . . . . . 102 2 15 Shots 5 | . . 1 . . . . . . . 3 . 1 Rammed 1 | . . . . . . . . . . . 1 . Targets Rammed 1 | . . . . . . . . . . . 1 . Kicked . | . . . . . . . . . . . . . Crushed . | . . . . . . . . . . . . . Highest Temperature 250 | . . 3 . 6 . . 154 218 . . . 250 Average Temperature 80 | . . 2 . 4 . . 91 113 . . . 91 Received Heat Transfer 1988 | . . 231 87 630 42 . . . 9 201 144 644 Siege Activations . | . . . . . . . . . . . . . Martial Activations . | . . . . . . . . . . . . . Shielding Activations . | . . . . . . . . . . . . . Robots Disrupted . | . . . . . . . . . . . . . Combat Hostiles . | . . . . . . . . . . . . . Robots Corrupted 16 | . . 4 3 7 2 . . . . . . . Combat Hostiles 12 | . . 3 3 6 . . . . . . . . Parts Fried 25 | . . 6 3 13 3 . . . . . . . Impact Corruptions 41 | . . 13 3 20 5 . . . . . . . Robots Melted . | . . . . . . . . . . . . . Combat Hostiles . | . . . . . . . . . . . . . Parts Melted . | . . . . . . . . . . . . . Heat Transferred 50 | . . 50 . . . . . . . . . . Parts Sabotaged . | . . . . . . . . . . . . . Parts Stolen . | . . . . . . . . . . . . . Parts Stripped . | . . . . . . . . . . . . . Power Chain Reactions . | . . . . . . . . . . . . . Alert | -11 -10 -10 -9 -8 -7 -6 -6 -6 -5 -4 -3 -2 ------- Run | Yrd Mat Min Mat Mat Fac Fac Was Fac Fac Fac Res Res Maximum Alert Level 1 | . . . . 1 . . . . . 1 1 1 Low Security (%) 90 | . 100 100 100 83 100 100 100 100 100 80 52 91 Level 1 9 | . . . . 16 . . . . . 19 47 8 Level 2 . | . . . . . . . . . . . . . Level 3 . | . . . . . . . . . . . . . Level 4 . | . . . . . . . . . . . . . Level 5 . | . . . . . . . . . . . . . High Security . | . . . . . . . . . . . . . Max Security . | . . . . . . . . . . . . . Peak Influence 328 | . 61 190 79 252 111 15 . 95 97 278 328 267 Initial 150 | . . . 59 4 111 7 . . 29 42 129 150 Average 86 | . 11 69 43 109 66 2 . 35 46 125 215 131 Influence Increases 2988 | . 71 384 122 510 74 57 . 125 118 520 350 657 Destroy 0b10 Robot/C 1240 | . 20 220 100 320 . . . 80 . 220 160 120 Destroy 0b10 Robot/NC 135 | . . 20 . 10 25 15 . . . 30 10 25 Destroy Leader 256 | . 10 40 20 90 . 4 . 10 . 42 20 20 Successful Hack 110 | . 10 . . . 26 11 . 5 16 . 42 . Disable Machine 105 | . . 15 . . . . . 15 . 45 . 30 Destroy Structure 362 | . 1 29 2 . 8 12 . . 12 108 118 72 Partial Spotted 105 | . . . . 30 15 15 . . 15 15 . 15 Lose Combat Pursuer 675 | . 30 60 . 60 . . . 15 75 60 . 375 Influence Decreases 2731 | . 71 232 263 275 305 72 . 65 91 359 329 669 Entered New Map 557 | . . . 93 7 135 8 . . 31 45 119 119 Time Decay 1611 | . 71 202 160 198 150 53 . 55 60 222 130 310 Lost Part 532 | . . 10 10 70 20 . . 10 . 92 80 240 Lost Ally 20 | . . 20 . . . . . . . . . . Purge Threat 11 | . . . . . . 11 . . . . . . Squads Dispatched 24 | . . 1 1 4 1 . . . . 5 1 11 Investigation 1 | . . . 1 . . . . . . . . . Extermination 8 | . . . . . 1 . . . . 1 1 5 Reinforcement 8 | . . . . 1 . . . . . 4 . 3 Assault 1 | . . 1 . . . . . . . . . . Garrison 6 | . . . . 3 . . . . . . . 3 Intercept . | . . . . . . . . . . . . . Searches Triggered . | . . . . . . . . . . . . . Construction Impeded 2 | . . . . . . . . . . 1 . 1 Haulers Reinforced 1 | . . . . . . . . . . 1 . . Active Scanning Responses . | . . . . . . . . . . . . . Cargo Convoy Interrupts . | . . . . . . . . . . . . . Stealth | -11 -10 -10 -9 -8 -7 -6 -6 -6 -5 -4 -3 -2 --------- Run | Yrd Mat Min Mat Mat Fac Fac Was Fac Fac Fac Res Res Distress Signals 5 | . . . 1 1 . . . . . . . 3 Communications Jammed . | . . . . . . . . . . . . . Distress Signals . | . . . . . . . . . . . . . Times Spotted 159 | . 4 15 10 24 3 4 6 5 3 22 10 53 Peak Tracking Total 20 | . 3 4 3 5 3 1 6 4 6 6 8 20 Tactical Retreats 22 | . 1 2 . 3 . . . 1 1 4 . 10 Traps | -11 -10 -10 -9 -8 -7 -6 -6 -6 -5 -4 -3 -2 ------- Run | Yrd Mat Min Mat Mat Fac Fac Was Fac Fac Fac Res Res Traps Triggered 5 | . . . 1 . . 1 . 1 . . . 2 Indirectly . | . . . . . . . . . . . . . Trap Hack Attempts . | . . . . . . . . . . . . . Triggered . | . . . . . . . . . . . . . Disarmed . | . . . . . . . . . . . . . Reprogrammed . | . . . . . . . . . . . . . Reused . | . . . . . . . . . . . . . Traps Extracted . | . . . . . . . . . . . . . Installed . | . . . . . . . . . . . . . Triggered . | . . . . . . . . . . . . . Machines | -11 -10 -10 -9 -8 -7 -6 -6 -6 -5 -4 -3 -2 ---------- Run | Yrd Mat Min Mat Mat Fac Fac Was Fac Fac Fac Res Res Machines Disabled 7 | . . 1 . . . . . 1 . 3 . 2 Max in Single Turn 1 | . . 1 . . . . . 1 . 1 . 1 Garrison Access 1 | . . . . . 1 . . . . . . . Machines Repaired . | . . . . . . . . . . . . . Machines Dismantled . | . . . . . . . . . . . . . Machines Sabotaged . | . . . . . . . . . . . . . Overloaded Fab Kills . | . . . . . . . . . . . . . Hacking | -11 -10 -10 -9 -8 -7 -6 -6 -6 -5 -4 -3 -2 --------- Run | Yrd Mat Min Mat Mat Fac Fac Was Fac Fac Fac Res Res Machines Accessed 23 | . 2 . 1 . 5 5 . 3 1 4 2 . Terminals 16 | . 2 . 1 . 2 4 . 1 1 3 2 . Fabricators . | . . . . . . . . . . . . . Repair Stations 3 | . . . . . 1 . . 1 . 1 . . Recycling Units . | . . . . . . . . . . . . . Scanalyzers . | . . . . . . . . . . . . . Garrison Access 4 | . . . . . 2 1 . 1 . . . . Total Hacks 46 | . 2 . 1 . 9 14 . 7 2 8 3 . Successful 15 | . 2 . . . 4 4 . 1 1 1 2 . Failed 31 | . . . 1 . 5 10 . 6 1 7 1 . Catastrophic 8 | . . . 1 . 1 2 . 1 1 1 1 . Database Lockouts . | . . . . . . . . . . . . . Manual 12 | . . . . . 2 10 . . . . . . Terminals 36 | . 2 . 1 . 6 12 . 3 2 7 3 . Fabricators . | . . . . . . . . . . . . . Repair Stations 3 | . . . . . 1 . . 1 . 1 . . Recycling Units . | . . . . . . . . . . . . . Scanalyzers . | . . . . . . . . . . . . . Garrison Access 7 | . . . . . 2 2 . 3 . . . . Terminal Hacks 10 | . 2 . . . 2 2 . . 1 1 2 . Prototype ID Bank 3 | . 2 . . . 1 . . . . . . . Open DSF 1 | . . . . . . . . . . 1 . . Level Access Points 2 | . . . . . 1 . . . . . 1 . Branch Access Points 1 | . . . . . . . . . 1 . . . Terminal Index 2 | . . . . . . 1 . . . . 1 . Unreport Threat 1 | . . . . . . 1 . . . . . . Fabricator Hacks . | . . . . . . . . . . . . . Repair Station Hacks 1 | . . . . . . . . 1 . . . . Refit 1 | . . . . . . . . 1 . . . . Recycling Unit Hacks . | . . . . . . . . . . . . . Scanalyzer . | . . . . . . . . . . . . . Garrison Access Hacks 1 | . . . . . 1 . . . . . . . Seal Access 1 | . . . . . 1 . . . . . . . Unauthorized Hacks 3 | . . . . . 1 2 . . . . . . Terminals 3 | . . . . . 1 2 . . . . . . Botnet 2 | . . . . . 1 1 . . . . . . Skim 1 | . . . . . . 1 . . . . . . Fabricators . | . . . . . . . . . . . . . Repair Stations . | . . . . . . . . . . . . . Recycling Units . | . . . . . . . . . . . . . Scanalyzers . | . . . . . . . . . . . . . Garrison Access . | . . . . . . . . . . . . . Data Cores Recovered 1 | . . . . . . 1 . . . . . . Used 1 | . . . . . . 1 . . . . . . Hacking Detections 17 | . . . 1 . 3 5 . 2 1 3 2 . Full Trace Events . | . . . . . . . . . . . . . Feedback Events . | . . . . . . . . . . . . . Feedback Blocked . | . . . . . . . . . . . . . Robot Schematics Acquired . | . . . . . . . . . . . . . Robots Built . | . . . . . . . . . . . . . Authchips . | . . . . . . . . . . . . . Time . | . . . . . . . . . . . . . Total Robot Build Rating . | . . . . . . . . . . . . . Part Schematics Acquired . | . . . . . . . . . . . . . Parts Built . | . . . . . . . . . . . . . Authchips . | . . . . . . . . . . . . . Time . | . . . . . . . . . . . . . Total Part Build Rating . | . . . . . . . . . . . . . Parts Repaired . | . . . . . . . . . . . . . Time . | . . . . . . . . . . . . . Parts Recycled . | . . . . . . . . . . . . . Recycled Matter . | . . . . . . . . . . . . . Retrieved Matter . | . . . . . . . . . . . . . Retrieved Components . | . . . . . . . . . . . . . Parts Scanalyzed . | . . . . . . . . . . . . . Part Schematics Acquired . | . . . . . . . . . . . . . Parts Damaged . | . . . . . . . . . . . . . Bothacking | -11 -10 -10 -9 -8 -7 -6 -6 -6 -5 -4 -3 -2 ------------ Run | Yrd Mat Min Mat Mat Fac Fac Was Fac Fac Fac Res Res Used RIF Installer . | . . . . . . . . . . . . . Robots Hacked . | . . . . . . . . . . . . . Non-combat . | . . . . . . . . . . . . . Combat . | . . . . . . . . . . . . . Robot Hacks Applied . | . . . . . . . . . . . . . Relay Couplers Released . | . . . . . . . . . . . . . Fabnet Peak Effective % . | . . . . . . . . . . . . . Robots Rewired . | . . . . . . . . . . . . . Allies Hacked . | . . . . . . . . . . . . . Hacks Repelled . | . . . . . . . . . . . . . Allies | -11 -10 -10 -9 -8 -7 -6 -6 -6 -5 -4 -3 -2 -------- Run | Yrd Mat Min Mat Mat Fac Fac Was Fac Fac Fac Res Res Total Allies 1 | . . 1 . . . . . . . . . . Largest Group 1 | . . 1 . . . . . . . . . . Highest-Rated Group 31 | . . 31 . . . . . . . . . . Highest-Rated Ally 31 | . . 31 . . . . . . . . . . Total Orders . | . . . . . . . . . . . . . Ally Attacks 5 | . . 5 . . . . . . . . . . Total Damage 62 | . . 62 . . . . . . . . . . Kills . | . . . . . . . . . . . . . Allies Corrupted . | . . . . . . . . . . . . . Allies Melted . | . . . . . . . . . . . . . Intel | -11 -10 -10 -9 -8 -7 -6 -6 -6 -5 -4 -3 -2 ------- Run | Yrd Mat Min Mat Mat Fac Fac Was Fac Fac Fac Res Res Active Infowar (turns) 2886 | . . . . 507 301 263 48 204 123 477 274 689 Optics 948 | . . . . 507 301 140 . . . . . . Sensors 319 | . . . . . . . . 36 123 131 . 29 Seismic 202 | . . . . 1 . . . . 24 177 . . T.N.C. 987 | . . . . . . . . . . 419 274 294 Machine Analysis 2303 | . . . . . 225 263 48 204 123 477 274 689 Robot Analysis Total . | . . . . . . . . . . . . . Derelict Logs Recovered 1 | . . 1 . . . . . . . . . . Drone Launches . | . . . . . . . . . . . . . Drone Recoveries . | . . . . . . . . . . . . . Exploration | -11 -10 -10 -9 -8 -7 -6 -6 -6 -5 -4 -3 -2 ------------- Run | Yrd Mat Min Mat Mat Fac Fac Was Fac Fac Fac Res Res Turns Passed 4128 | . 365 510 323 551 301 263 48 204 123 477 274 689 Spaces Moved 4111 | 1 246 330 215 360 434 319 88 231 162 594 248 883 Core 3124 | . . . . 276 427 319 85 227 158 590 244 798 Treads 116 | . 103 10 . 2 . . . 1 . . . . Legs 720 | 1 143 320 215 37 . . . . . 3 . 1 Wheels 7 | . . . . . 7 . . . . . . . Hover 4 | . . . . . . . . . . . 4 . Flight 140 | . . . . 45 . . 3 3 4 1 . 84 Fastest Speed 40 | 120 120 120 120 40 50 50 50 50 50 50 50 45 Average Speed 69 | 120 136 121 120 79 50 50 51 54 51 51 69 52 Slowest Speed 200 | 120 160 190 120 160 100 50 80 160 115 150 200 125 Overloaded Moves . | . . . . . . . . . . . . . Propulsion Burnouts . | . . . . . . . . . . . . . Robots Hopped 5 | . . . . . . . 2 . . . . 3 Potential Cave-ins 5 | . . . . . 2 . . . . 3 . . Cave-ins Triggered . | . . . . . . . . . . . . . Exploration Rate (%) 28 | 1 48 76 25 35 18 16 73 7 8 20 8 30 Regions Visited 12 Branch Regions 1 Pre-discovered Areas 1 | . . 1 . . . . . . . . . . Known Exits Taken 5 | . . . . . 1 . . 1 1 1 1 . Unknown Exits Taken 5 | 1 1 1 1 1 . . . . . . . . Scrap Searched 1 | . . 1 . . . . . . . . . . Spaces Dug 89 | . . . 2 . 8 12 . . 6 32 4 25 Terrain Destroyed 237 | . . 36 2 . 8 12 . . 6 60 88 25 Melee 61 | . . . 2 . 8 12 . . 6 18 4 11 Projectile . | . . . . . . . . . . . . . AOE 176 | . . 36 . . . . . . . 42 84 14 Terrain Rammed . | . . . . . . . . . . . . . Walls Destroyed . | . . . . . . . . . . . . . Machines Disabled . | . . . . . . . . . . . . . Actions | -11 -10 -10 -9 -8 -7 -6 -6 -6 -5 -4 -3 -2 --------- Run | Yrd Mat Min Mat Mat Fac Fac Was Fac Fac Fac Res Res Total 4882 | . 276 385 258 504 493 392 88 292 189 685 312 1008 Wait 197 | . . 4 22 37 14 51 2 23 12 3 14 15 Move 4092 | . 245 329 214 359 433 319 84 230 161 593 248 877 Hop 4 | . . . . . . . 1 . . . . 3 Pick Up 26 | . 11 3 2 1 2 . . 1 1 4 1 . Fast Attach 96 | . 4 2 2 11 12 6 1 9 1 12 12 24 Attach 21 | . . 1 1 3 1 . . . 1 6 2 6 Detach 16 | . . . . 1 1 . . 1 . 5 3 5 Swap 21 | . 2 8 1 2 4 . . . 3 1 . . Drop 78 | . 12 5 2 15 13 1 . 5 3 6 6 10 Fire 17 | . 2 2 . . . . . . . 4 8 1 Melee 295 | . . 31 14 75 13 15 . 8 7 51 18 63 Ram . | . . . . . . . . . . . . . Kick . | . . . . . . . . . . . . . Crush . | . . . . . . . . . . . . . Escape Stasis 19 | . . . . . . . . 15 . . . 4 Rewire . | . . . . . . . . . . . . . Trap . | . . . . . . . . . . . . . Miscellaneous . | . . . . . . . . . . . . . Route ------- -11/Scrapyard -10/Materials (discovered 2 exits: *Mat / [*Min]) -10/Mines -9/Materials -8/Materials -7/Factory (discovered 4 exits: *Fac x4) -6/Factory -6/Waste -6/Factory -5/Factory (discovered 5 exits: *Fac / Upp x2 / Ext x2) -4/Factory -3/Research (discovered 3 exits: *Res x3) -2/Research History --------- Turn | Location | Event 1 | -11/Scrapyard | Discovered new exit (range 0) 1 | -11/Scrapyard | Entered Materials 224 | -10/Materials | Discovered new exit (range 3) 338 | -10/Materials | Build established: Mutant 347 | -10/Materials | Discovered new exit (range 8) 366 | -10/Materials | Entered Mines 451 | -10/Mines | Received a Rocket Launcher from a helpful Derelict 477 | -10/Mines | Found a Scrap Suit stashed away for nefarious purposes 517 | -10/Mines | Learned location of Zion (-7) 656 | -10/Mines | Core integrity fell below 50% 664 | -10/Mines | Met a Derelict testing a Signal Generator 675 | -10/Mines | Found Signal Generator 871 | -10/Mines | Discovered new exit (range 5) 876 | -10/Mines | Entered Materials 876 | -9/Materials | Evolved 2 slots: Propulsion x2 1166 | -9/Materials | Discovered new exit (range 12) 1199 | -9/Materials | Entered another Materials area 1199 | -8/Materials | Evolved 2 slots: Propulsion x1, Utility x1 1525 | -8/Materials | Garrison activated, responded to threat 1561 | -8/Materials | Core integrity fell below 50% 1694 | -8/Materials | Core integrity fell below 20% 1741 | -8/Materials | Discovered new exit (range 18) 1750 | -8/Materials | Entered Factory 1750 | -7/Factory | Evolved 2 slots: Propulsion x1, Utility x1 1969 | -7/Factory | Identified exit to Factory 2051 | -7/Factory | Entered another Factory area 2051 | -6/Factory | Evolved 2 slots: Propulsion x2 2314 | -6/Factory | Sucked down chute 2314 | -6/Factory | Entered Waste 2325 | -6/Waste | Spotted C-40 Crusher 2327 | -6/Waste | Spotted C-40 Crusher 2329 | -6/Waste | EMP discharged 2329 | -6/Waste | Spotted C-40 Crusher 2342 | -6/Waste | Spotted C-40 Crusher 2343 | -6/Waste | Spotted C-40 Crusher 2346 | -6/Waste | Spotted C-40 Crusher 2352 | -6/Waste | Crushed by Compactor (1 part destroyed, 1 dropped) 2354 | -6/Waste | Crushed by Compactor (1 part destroyed, 1 dropped) 2354 | -6/Waste | Discovered new exit (range 16) 2362 | -6/Waste | Entered Factory 2385 | -6/Factory | Lost 4 parts (4n) 2526 | -6/Factory | Discovered new exit (range 14) 2547 | -6/Factory | Identified exit to Factory 2566 | -6/Factory | Entered another Factory area 2566 | -5/Factory | Evolved 2 slots: Utility x2 2671 | -5/Factory | Identified exit to Upper Caves 2671 | -5/Factory | Identified exit to Extension 2680 | -5/Factory | Discovered new exit (range 7) 2684 | -5/Factory | Identified exit to Factory 2689 | -5/Factory | Entered another Factory area 2689 | -4/Factory | Evolved 2 slots: Propulsion x2 2845 | -4/Factory | Lost 4 parts (1p1n1u1w) 3137 | -4/Factory | Discovered new exit (range 10) 3165 | -4/Factory | Identified exit to Research 3166 | -4/Factory | Entered Research 3166 | -3/Research | Evolved 2 slots: Utility x2 3169 | -3/Research | Identified exit to Research 3197 | -3/Research | Lost 3 parts (1p2n) 3358 | -3/Research | Lost 5 parts (5n) 3367 | -3/Research | Destroyed 8 combat bots 3440 | -3/Research | Entered another Research area 3440 | -2/Research | Evolved 2 slots: Utility x2 3470 | -2/Research | Lost 3 parts (3n) 3474 | -2/Research | Spotted B-90 Cyclops 3646 | -2/Research | Spotted B-90 Cyclops 3733 | -2/Research | Garrison activated, responded to threat 3791 | -2/Research | Lost 4 parts (3n1u) 3792 | -2/Research | System corruption reached 10% 3959 | -2/Research | Lost 3 parts (3n) 4045 | -2/Research | System corruption reached 30% 4049 | -2/Research | Core integrity fell below 50% 4114 | -2/Research | Core integrity fell below 20% 4129 | -2/Research | Destroyed by B-90 Cyclops with Nova Cannon Last Messages --------------- corruption cleaned. 04088_ ALERT: Potential suspicious activity detected, Programmers report to Research Zone 2I. 04093_ System corrupted: Matter fused (-10). 04105_ K-01 Serf destroyed. 04105_ Door malfunctions. 04107_ Hvy. Shield Leg destroyed. 04108_ Imp. Melee Analysis Suite destroyed. 04108_ P-80 Master resets P-80 Master, system corruption cleaned. 04109_ System corrupted: Energy discharge (-22). 04109_ P-80 Master suffers critical hit (Destroy). 04109_ P-80 Master destroyed. 04111_ Hvy. Shield Leg destroyed. 04124_ OLG|<#NSDO8:#T OFGCT>CBTHIE8/ENE:AMVMW 04128_ Electron Diverter destroyed. 04128_ S-43 Plague destroyed. 04129_ K-01 Serf destroyed. Map ----- +----------------------------------------------------+ | ?????????????????# #????############# | | ?????????????????# ####+# | | ?????????????????# + + [ | | ?????????????????# # # | | ?????????????????# # # | | ?????????????????# # # | | ?????????????????# / # | | ?????????????????# # + | | ????????????###### # # = | | ????????????# # # # | | ????????????# # # # | | ????????????# # # # | | ????????????# # # # | | ????????????# # # ########/#### | | ????????????# + # | | ????????????# # # ############# | | ????????????# # # #???????????? | | ????????????# #! # #???????????? | | ???????????## ########## #??""""?????" | | ??????????### u #??""""?????" | | ??????????#BB #??""""?????" | | ??????????#BB ^ #??""""?????" | | ??????????##; """" #???????????" | | ????????????# ""T"" #???????????" | | ????????????# #???????????" | | ????????????# @ ###+####????? | | ????????????# * #????? | | ????????????# !%= s #????? | | ????????????# %= =% s #????? | | ????????????# =ssss sp ###### | | ????????????########+;###;######## # | | ???????????????# ##??????# #! | | ???????????????# = #???????# # | | ???????????????# #???????# + | | ???????????????# ! #???????# # | | ???????????????# #???????# # | | ???????????????# #???????# # | | ???????????????# = #???????# # | | ???????????????# #???????# # | | ???????????????###########???????# #####+ | | ?????????????????????????????????# | | ?????????????????????????????????# | | ?????????????????????????????????# | | ???????????????????????########### | | ???????????????????????# # ###### | | ???????????????????????# # #????? | | ??????????????????????????""""" # #????? | | ??????????????????????????""""" " +????" | | ??????????????????????????""""" # #??""" | | ??????????????????????????""""" # = #??""" | +----------------------------------------------------+ Best States ------------- Heat Dissipation 49 Coolant Potential 120 Energy Generation 25 Energy Capacity 190 Matter Stores 300 Matter Capacity 300 Sight Range 18 Robot Scan Range 16 Terrain Scan Density 110 Additional Mass Support 9 Armor Coverage 150 Melee Speed Boost 20 Evasion (%) 73 Melee Accuracy 6 Recoil Reduction 4 Offensive Hacking 10 Defensive Hacking 14 Item Schematics ----------------- None Robot Schematics ------------------ None Fabricated ------------ Nothing Repaired ---------- Nothing Alien Tech Used ----------------- None Achievements -------------- Batter Up Challenges ------------ None Game ------ Seed MeleeIntegratedSaw Manual? 0 Play Time 00:59:17 Cumulative 262.4 hours Start 2025.06.13 @ 23:26:53 End 2025.06.14 @ 00:24:44 Sessions 1 Manual Loads 0 Difficulty Rogue Special Mode None Game No. 155 Rogue 155 Adventurer 0 Explorer 0 Win Type - Total 12 Types 12/0/0/0/0/0/0/0/0/0 Lore% 73 Gallery% 69 Achievement% 62 Wizard Run 0 Options --------- Layout 1 ASCII 0 Keyboard 0 Movement Numpad Keybinds 0 Fullscreen 1 Font 24/Smallcaps Map View 50x35 Zoom Use 0% Tactical HUD 1 Map Filters NONE Filters NONE Steam 1 RUN: b7c5d22d-fae8-4678-88df-f688031dadaf